fUSD/lending_fUSD_20240501
["ID","MTS","AMOUNT","RATE_DAILY","PERIOD"]
[325172628,1714548639371,-331.10952678,0.00011403,2]
[325172629,1714548639381,-1786.87,0.00011403,2]
[325172630,1714548639392,-500.0,0.00011403,2]
[325172631,1714548639403,-500.66666074,0.00011403,2]
[325172632,1714548639413,-500.0,0.00011403,2]
[325172633,1714548639423,-500.0,0.00011403,2]
[325172634,1714548639433,-500.0,0.00011403,2]
[325172635,1714548639443,-500.57142867,0.00011403,2]
[325172636,1714548639453,-500.0,0.00011403,2]
[325172637,1714548639462,-500.0,0.00011403,2]
[325172638,1714548639476,-501.33440066,0.00011403,2]
[325172639,1714548639486,-500.0,0.00011403,2]
[325172640,1714548639496,-500.46663875,0.00011403,2]
[325172641,1714548639506,-501.11410959,0.00011403,2]
[325172642,1714548639515,-903.38,0.00011403,2]
[325172643,1714548639525,-188.70171788,0.00011403,2]
[325172644,1714548639534,-553.64,0.00011403,2]
[325172645,1714548639544,-500.0,0.00011403,2]
[325172646,1714548639554,-500.0,0.00011403,2]
[325172647,1714548639563,-500.0,0.00011403,2]
[325172648,1714548639572,-500.0,0.00011403,2]
[325172649,1714548639583,-500.54422517,0.00011403,2]
[325172650,1714548639592,-500.0,0.00011403,2]
[325172651,1714548639603,-500.0,0.00011403,2]
[325172652,1714548639613,-2605.64,0.00011403,2]
[325172653,1714548639622,-502.12221303,0.00011403,2]
[325172654,1714548639634,-332.57,0.00011403,2]
[325172655,1714548639644,-500.0,0.00011403,2]
[325172656,1714548639653,-500.0,0.00011403,2]
[325172657,1714548639663,-501.31456488,0.00011403,2]
[325172658,1714548639672,-500.0,0.00011403,2]
[325172659,1714548639682,-500.0,0.00011403,2]
[325172660,1714548639691,-854.35,0.00011403,2]
[325172661,1714548639700,-500.0,0.00011403,2]
[325172662,1714548639709,-504.01727395,0.00011403,2]
[325172663,1714548639722,-500.31690284,0.00011403,2]
[325172664,1714548639731,-500.0,0.00011403,2]
[325172665,1714548639740,-502.6882838,0.00011403,2]
[325172666,1714548639748,-500.0,0.00011403,2]
[325172667,1714548639758,-1562.99,0.00011403,2]
[325172668,1714548639767,-302.79302114,0.00011403,2]
[325172669,1714548639776,-500.0,0.00011403,2]
[325172670,1714548639785,-500.0,0.00011403,2]
[325172671,1714548639795,-500.0,0.00011403,2]
[325172672,1714548639804,-743.19,0.00011403,2]
[325172673,1714548639813,-454.09063367,0.00011403,2]
[325172674,1714548639823,-500.0,0.00011403,2]
[325172675,1714548639831,-1681.17,0.00011403,2]
[325172676,1714548639840,-500.0,0.00011403,2]
[325172677,1714548639850,-500.0,0.00011403,2]
[325172678,1714548639859,-500.0,0.00011403,2]
[325172679,1714548639868,-500.0,0.00011403,2]
[325172680,1714548639877,-641.41,0.00011403,2]
[325172681,1714548639887,-500.0,0.00011403,2]
[325172682,1714548639896,-500.0,0.00011403,2]
[325172683,1714548639904,-36818.68272758,0.00011403,2]
[325172715,1714548641207,-269.70465281,0.0001123,2]
[325172716,1714548641223,-230.29534719,0.0001123,2]
[325172717,1714548641232,-569.32695274,0.0001123,2]
[325172718,1714548641242,-500.56,0.0001123,2]
[325172719,1714548641251,-50.64002007,0.00011402,2]
[325172720,1714548641263,-449.35997993,0.00011402,2]
[325172721,1714548641272,-2453.54002007,0.00011403,2]
[325172722,1714548641284,-40817.77725235,0.00011403,2]
[325172723,1714548641294,-3924.98,0.00011403,2]
[325172724,1714548641303,-500.0,0.00011403,2]
[325172725,1714548641312,-500.0,0.00011403,2]
[325172726,1714548641322,-500.0,0.00011403,2]
[325172727,1714548641332,-500.0,0.00011403,2]
[325172728,1714548641342,-500.0,0.00011403,2]
[325172729,1714548641351,-560.12,0.00011403,2]
[325172730,1714548641360,-500.0,0.00011403,2]
[325172731,1714548641370,-1693.6,0.00011403,2]
[325172732,1714548641379,-500.0,0.00011403,2]
[325172733,1714548641388,-624.21,0.00011403,2]
[325172734,1714548641398,-799.94,0.00011403,2]
[325172735,1714548641407,-500.0,0.00011403,2]
[325172736,1714548641416,-500.0,0.00011403,2]
[325172737,1714548641427,-500.0,0.00011403,2]
[325172738,1714548641436,-500.0,0.00011403,2]
[325172739,1714548641445,-500.0,0.00011403,2]
[325172740,1714548641455,-500.0,0.00011403,2]
[325172741,1714548641464,-450.54405501,0.00011403,2]
[325172742,1714548641479,-501.49,0.00011403,2]
[325172743,1714548641491,-500.0,0.00011403,2]
[325172744,1714548641500,-500.0,0.00011403,2]
[325172745,1714548641510,-500.0,0.00011403,2]
[325172746,1714548641520,-3785.0186926,0.00011403,2]
[325172747,1714548641532,-4947.0613074,0.00011403,2]
[325172749,1714548641543,-555.00999459,0.00011403,2]
[325172751,1714548641553,-500.0,0.00011403,2]
[325172753,1714548641563,-500.0,0.00011403,2]
[325172754,1714548641573,-500.0,0.00011403,2]
[325172756,1714548641583,-500.0,0.00011403,2]
[325172758,1714548641592,-500.0,0.00011403,2]
[325172759,1714548641602,-962.59,0.00011403,2]
[325172760,1714548641612,-500.0,0.00011403,2]
[325172761,1714548641621,-500.0,0.00011403,2]
[325172762,1714548641631,-500.0,0.00011403,2]
[325172763,1714548641641,-564.74,0.00011403,2]
[325172764,1714548641650,-155.4887,0.00011404,2]
[325172765,1714548641660,-24856.9335813,0.00011404,2]
[325172766,1714548641671,-2534.1497,0.00011404,2]
[325172767,1714548641682,-1835.95764942,0.00011404,2]
[325172773,1714548641872,-11666.31496309,0.00011404,2]
[325172777,1714548641885,-503.62449912,0.00011404,2]
[325172780,1714548641898,-127244.07580707,0.00011404,2]
[325172782,1714548641909,-209.0647054,0.00011494,2]
[325172784,1714548641922,-500.0,0.00011503,2]
[325172786,1714548641933,-500.0,0.00011503,2]
[325172788,1714548641943,-500.0,0.00011503,2]
[325172790,1714548641953,-500.0,0.00011503,2]
[325172792,1714548641964,-500.0,0.00011503,2]
[325172794,1714548641979,-500.0,0.00011503,2]
[325172796,1714548641990,-500.0,0.00011503,2]
[325172798,1714548642002,-500.0,0.00011503,2]
[325172800,1714548642012,-500.0,0.00011503,2]
[325172802,1714548642026,-500.0,0.00011503,2]
[325172804,1714548642037,-500.0,0.00011503,2]
[325172806,1714548642048,-150.0,0.00011503,2]
[325172808,1714548642058,-500.0,0.00011503,2]
[325172810,1714548642069,-500.0,0.00011503,2]
[325172812,1714548642080,-500.0,0.00011503,2]
[325172814,1714548642090,-500.0,0.00011503,2]
[325172816,1714548642101,-500.0,0.00011503,2]
[325172818,1714548642111,-500.0,0.00011503,2]
[325172820,1714548642121,-500.0,0.00011503,2]
[325172822,1714548642133,-458.1,0.00011503,2]
[325172824,1714548642144,-196.73079852,0.00011503,2]
[325172826,1714548642159,-500.0,0.00011503,2]
[325172828,1714548642169,-500.0,0.00011503,2]
[325172831,1714548642180,-500.0,0.00011503,2]
[325172832,1714548642190,-500.0,0.00011503,2]
[325172834,1714548642200,-500.0,0.00011503,2]
[325172836,1714548642209,-500.0,0.00011503,2]
[325172838,1714548642222,-568.91873985,0.00011503,2]
[325172840,1714548642235,-500.0,0.00011503,2]
[325172843,1714548642245,-298.20097861,0.00011503,2]
[325172844,1714548642256,-509.21,0.00011503,2]
[325172847,1714548642266,-208.90356062,0.00011503,2]
[325172849,1714548642275,-500.0,0.00011503,2]
[325172851,1714548642284,-500.0,0.00011503,2]
[325172853,1714548642294,-500.0,0.00011503,2]
[325172855,1714548642303,-1197.23,0.00011503,2]
[325172857,1714548642313,-500.0,0.00011503,2]
[325172859,1714548642323,-548.43,0.00011503,2]
[325172861,1714548642333,-500.0,0.00011503,2]
[325172863,1714548642342,-500.0,0.00011503,2]
[325172865,1714548642352,-500.0,0.00011503,2]
[325172867,1714548642361,-500.0,0.00011503,2]
[325172868,1714548642370,-500.0,0.00011503,2]
[325172871,1714548642379,-524.35,0.00011503,2]
[325172873,1714548642389,-500.0,0.00011503,2]
[325172875,1714548642398,-623.95,0.00011503,2]
[325172877,1714548642408,-500.0,0.00011503,2]
[325172879,1714548642418,-500.0,0.00011503,2]
[325172880,1714548642428,-500.0,0.00011503,2]
[325172882,1714548642437,-1199.51,0.00011503,2]
[325172884,1714548642447,-500.0,0.00011503,2]
[325172887,1714548642457,-500.0,0.00011503,2]
[325172889,1714548642466,-825.59,0.00011503,2]
[325172890,1714548642482,-500.0,0.00011503,2]
[325172892,1714548642492,-500.0,0.00011504,2]
[325172895,1714548642502,-500.0,0.00011504,2]
[325172897,1714548642511,-510.6786639,0.00011504,2]
[325172899,1714548642520,-576.57482625,0.00011504,2]
[325172901,1714548642530,-471.06,0.00011504,2]
[325172902,1714548642540,-392.48484006,0.00011504,2]
[325172905,1714548642549,-513.55880252,0.00011504,2]
[325172907,1714548642559,-500.0,0.00011504,2]
[325172909,1714548642568,-500.0,0.00011504,2]
[325172910,1714548642578,-597.00234518,0.00011504,2]
[325172913,1714548642588,-500.0,0.00011504,2]
[325172914,1714548642597,-601.28075828,0.00011504,2]
[325172916,1714548642606,-500.0,0.00011504,2]
[325172918,1714548642615,-205.28,0.00011504,2]
[325172920,1714548642624,-500.0,0.00011504,2]
[325172922,1714548642633,-334.61020589,0.00011504,2]
[325172924,1714548642642,-500.0,0.00011504,2]
[325172927,1714548642651,-557.18,0.00011504,2]
[325172929,1714548642660,-500.0,0.00011504,2]
[325172930,1714548642670,-500.0,0.00011504,2]
[325172932,1714548642679,-500.0,0.00011504,2]
[325172935,1714548642688,-243.4,0.00011504,2]
[325172936,1714548642697,-213.77,0.00011504,2]
[325172938,1714548642706,-292.60937221,0.00011504,2]
[325172940,1714548642715,-373.95,0.00011504,2]
[325172942,1714548642733,-527.34,0.00011504,2]
[325172945,1714548642742,-500.0,0.00011504,2]
[325172947,1714548642752,-500.0,0.00011504,2]
[325172949,1714548642761,-639.1,0.00011504,2]
[325172951,1714548642770,-500.0,0.00011504,2]
[325172953,1714548642780,-500.0,0.00011504,2]
[325172955,1714548642788,-500.0,0.00011504,2]
[325172957,1714548642797,-500.0,0.00011504,2]
[325172959,1714548642806,-500.0,0.00011504,2]
[325172961,1714548642816,-500.0,0.00011504,2]
[325172962,1714548642825,-521.21243189,0.00011504,2]
[325172965,1714548642836,-500.0,0.00011504,2]
[325172966,1714548642846,-500.0,0.00011504,2]
[325172968,1714548642855,-500.0,0.00011504,2]
[325172971,1714548642864,-500.0,0.00011504,2]
[325172972,1714548642873,-500.0,0.00011504,2]
[325172974,1714548642883,-500.0,0.00011504,2]
[325172976,1714548642892,-212.67,0.00011504,2]
[325172978,1714548642901,-542.18842819,0.00011504,2]
[325172981,1714548642910,-237.67907093,0.00011504,2]
[325172983,1714548642919,-500.0,0.00011504,2]
[325172984,1714548642928,-500.0,0.00011504,2]
[325172987,1714548642938,-371.24410569,0.00011504,2]
[325172989,1714548642947,-500.0,0.00011504,2]
[325172991,1714548642960,-500.0,0.00011504,2]
[325172992,1714548642974,-500.0,0.00011504,2]
[325172995,1714548642984,-500.0,0.00011504,2]
[325172997,1714548642993,-500.0,0.00011504,2]
[325172999,1714548643006,-152.12,0.00011504,2]
[325173001,1714548643016,-500.0,0.00011504,2]
[325173003,1714548643026,-841.43,0.00011504,2]
[325173005,1714548643035,-500.0,0.00011504,2]
[325173006,1714548643045,-500.0,0.00011504,2]
[325173009,1714548643055,-500.0,0.00011504,2]
[325173011,1714548643064,-500.0,0.00011504,2]
[325173012,1714548643074,-500.0,0.00011504,2]
[325173014,1714548643084,-680.47,0.00011504,2]
[325173016,1714548643093,-500.0,0.00011504,2]
[325173018,1714548643103,-331.88516444,0.00011504,2]
[325173020,1714548643112,-1039.02,0.00011504,2]
[325173022,1714548643121,-500.0,0.00011504,2]
[325173024,1714548643130,-500.0,0.00011504,2]
[325173026,1714548643140,-500.0,0.00011504,2]
[325173028,1714548643150,-500.0,0.00011504,2]
[325173030,1714548643159,-500.0,0.00011504,2]
[325173032,1714548643168,-500.0,0.00011504,2]
[325173034,1714548643177,-743.43,0.00011504,2]
[325173036,1714548643187,-500.0,0.00011504,2]
[325173038,1714548643196,-13768.89,0.00011504,2]
[325173039,1714548643206,-500.0,0.00011504,2]
[325173040,1714548643215,-500.0,0.00011504,2]
[325173041,1714548643231,-500.0,0.00011504,2]
[325173042,1714548643241,-2347.0,0.00011504,2]
[325173043,1714548643250,-500.0,0.00011504,2]
[325173044,1714548643259,-500.0,0.00011504,2]
[325173045,1714548643268,-500.0,0.00011504,2]
[325173047,1714548643277,-500.0,0.00011504,2]
[325173049,1714548643286,-937.35,0.00011504,2]
[325173050,1714548643296,-821.34,0.00011504,2]
[325173052,1714548643306,-511.32,0.00011504,2]
[325173054,1714548643316,-500.0,0.00011504,2]
[325173056,1714548643325,-500.0,0.00011504,2]
[325173058,1714548643335,-500.0,0.00011504,2]
[325173060,1714548643345,-685.63,0.00011504,2]
[325173063,1714548643354,-500.0,0.00011504,2]
[325173065,1714548643364,-903.38,0.00011504,2]
[325173068,1714548643376,-500.0,0.00011504,2]
[325173070,1714548643388,-620.89,0.00011504,2]
[325173072,1714548643397,-500.0,0.00011504,2]
[325173074,1714548643407,-477.72161388,0.00011504,2]
[325173076,1714548643417,-500.0,0.00011504,2]
[325173079,1714548643427,-510.96,0.00011504,2]
[325173082,1714548643436,-502.73380158,0.00011504,2]
[325173085,1714548643445,-500.0,0.00011504,2]
[325173088,1714548643454,-500.0,0.00011504,2]
[325173090,1714548643463,-500.0,0.00011504,2]
[325173093,1714548643478,-544.77,0.00011504,2]
[325173096,1714548643487,-628.46,0.00011504,2]
[325173099,1714548643496,-500.0,0.00011504,2]
[325173102,1714548643506,-2076.55,0.00011504,2]
[325173104,1714548643515,-816.62,0.00011504,2]
[325173107,1714548643524,-500.0,0.00011504,2]
[325173110,1714548643533,-1164.36,0.00011504,2]
[325173113,1714548643542,-500.0,0.00011504,2]
[325173115,1714548643551,-500.0,0.00011504,2]
[325173117,1714548643561,-2247.77,0.00011504,2]
[325173124,1714548643570,-1255.27,0.00011504,2]
[325173130,1714548643580,-559.18,0.00011504,2]
[325173137,1714548643590,-1984.57,0.00011504,2]
[325173143,1714548643600,-7982.22,0.00011504,2]
[325173146,1714548643610,-1034.21,0.00011504,2]
[325173150,1714548643620,-823.55,0.00011504,2]
[325173153,1714548643629,-400.68547561,0.00011504,2]
[325173156,1714548643638,-7713.43,0.00011504,2]
[325173159,1714548643647,-774.68,0.00011504,2]
[325173163,1714548643656,-500.0,0.00011504,2]
[325173166,1714548643666,-500.0,0.00011504,2]
[325173170,1714548643675,-500.0,0.00011504,2]
[325173173,1714548643684,-3660.22,0.00011504,2]
[325173176,1714548643693,-500.0,0.00011504,2]
[325173179,1714548643702,-500.0,0.00011504,2]
[325173181,1714548643712,-559.31,0.00011504,2]
[325173184,1714548643728,-500.0,0.00011504,2]
[325173186,1714548643737,-5028.53,0.00011504,2]
[325173189,1714548643746,-500.0,0.00011504,2]
[325173193,1714548643756,-500.0,0.00011504,2]
[325173195,1714548643765,-500.56,0.00011504,2]
[325173198,1714548643774,-500.0,0.00011505,2]
[325173201,1714548643783,-500.0,0.00011505,2]
[325173203,1714548643792,-586.59,0.00011505,2]
[325173206,1714548643801,-500.0,0.00011505,2]
[325173209,1714548643811,-500.0,0.00011505,2]
[325173212,1714548643821,-10000.0,0.00011654,2]
[325173216,1714548643830,-501.09664434,0.00011676,2]
[325173218,1714548643839,-500.0,0.00011676,2]
[325173222,1714548643848,-500.0,0.00011676,2]
[325173225,1714548643858,-500.0,0.00011676,2]
[325173228,1714548643867,-500.0,0.00011676,2]
[325173230,1714548643876,-217.98824588,0.00011676,2]
[325173233,1714548643890,-500.0,0.00011676,2]
[325173235,1714548643902,-500.0,0.00011676,2]
[325173238,1714548643915,-436.44069373,0.00011677,2]
[325173240,1714548643928,-500.0,0.00011677,2]
[325173242,1714548643941,-500.0,0.00011677,2]
[325173245,1714548643954,-462.52621441,0.00011677,2]
[325173247,1714548643967,-502.14670952,0.00011677,2]
[325173249,1714548643983,-500.0,0.00011677,2]
[325173251,1714548643994,-500.0,0.00011677,2]
[325173253,1714548644009,-500.0,0.00011677,2]
[325173255,1714548644020,-500.0,0.00011677,2]
[325173258,1714548644032,-367.77,0.00011677,2]
[325173260,1714548644043,-500.0,0.00011677,2]
[325173262,1714548644055,-500.0,0.00011677,2]
[325173264,1714548644067,-500.0,0.00011677,2]
[325173267,1714548644083,-500.0,0.00011677,2]
[325173269,1714548644094,-500.0,0.00011677,2]
[325173271,1714548644108,-500.0,0.00011677,2]
[325173274,1714548644121,-500.0,0.00011677,2]
[325173276,1714548644133,-500.0,0.00011677,2]
[325173278,1714548644146,-500.0,0.00011677,2]
[325173280,1714548644157,-4232.42,0.00011677,2]
[325173282,1714548644171,-616.56,0.00011677,2]
[325173285,1714548644182,-500.0,0.00011677,2]
[325173287,1714548644194,-500.0,0.00011677,2]
[325173289,1714548644205,-500.0,0.00011677,2]
[325173292,1714548644220,-1786.87,0.00011677,2]
[325173294,1714548644238,-500.0,0.00011677,2]
[325173296,1714548644250,-501.91327682,0.00011677,2]
[325173298,1714548644262,-553.64,0.00011677,2]
[325173300,1714548644273,-500.0,0.00011677,2]
[325173303,1714548644284,-500.0,0.00011677,2]
[325173305,1714548644296,-483.4,0.00011677,2]
[325173307,1714548644308,-2605.64,0.00011677,2]
[325173309,1714548644319,-500.0,0.00011677,2]
[325173311,1714548644332,-500.0,0.00011677,2]
[325173314,1714548644344,-500.0,0.00011677,2]
[325173316,1714548644356,-500.0,0.00011677,2]
[325173318,1714548644368,-854.35,0.00011677,2]
[325173321,1714548644379,-500.0,0.00011677,2]
[325173323,1714548644392,-500.0,0.00011677,2]
[325173325,1714548644403,-1562.99,0.00011677,2]
[325173328,1714548644416,-500.0,0.00011677,2]
[325173330,1714548644428,-743.19,0.00011677,2]
[325173332,1714548644441,-334.9,0.00011677,2]
[325173335,1714548644451,-1681.17,0.00011677,2]
[325173337,1714548644462,-500.0,0.00011677,2]
[325173339,1714548644476,-500.0,0.00011677,2]
[325173341,1714548644486,-641.41,0.00011677,2]
[325173343,1714548644497,-500.0,0.00011677,2]
[325173345,1714548644508,-3924.98,0.00011677,2]
[325173348,1714548644519,-500.0,0.00011677,2]
[325173350,1714548644532,-500.0,0.00011677,2]
[325173352,1714548644543,-500.0,0.00011677,2]
[325173354,1714548644555,-500.0,0.00011677,2]
[325173356,1714548644565,-500.0,0.00011677,2]
[325173359,1714548644576,-560.12,0.00011677,2]
[325173361,1714548644586,-500.0,0.00011677,2]
[325173363,1714548644600,-1693.6,0.00011677,2]
[325173365,1714548644612,-500.0,0.00011677,2]
[325173367,1714548644624,-799.94,0.00011677,2]
[325173369,1714548644635,-516.5504187,0.00011677,2]
[325173372,1714548644646,-484.49,0.00011677,2]
[325173374,1714548644656,-500.0,0.00011677,2]
[325173376,1714548644667,-500.0,0.00011677,2]
[325173378,1714548644678,-225.78751777,0.00011677,2]
[325173380,1714548644688,-501.49,0.00011677,2]
[325173382,1714548644698,-500.0,0.00011677,2]
[325173384,1714548644709,-586.99980779,0.00011677,2]
[325173387,1714548644723,-500.0,0.00011677,2]
[325173389,1714548644732,-8732.08,0.00011677,2]
[325173391,1714548644743,-500.0,0.00011677,2]
[325173393,1714548644754,-360.87491533,0.00011677,2]
[325173395,1714548644765,-422.3592466,0.00011677,2]
[325173397,1714548644775,-265.83092659,0.00011677,2]
[325173399,1714548644787,-962.59,0.00011677,2]
[325173402,1714548644797,-500.0,0.00011677,2]
[325173404,1714548644808,-500.0,0.00011677,2]
[325173406,1714548644819,-317.14354643,0.00011776,2]
[325173409,1714548644831,-252.81260572,0.00011776,2]
[325173412,1714548644842,-2186.62345348,0.00011776,2]
[325173416,1714548644853,-300.17125984,0.00011776,2]
[325173418,1714548644864,-500.0,0.00011777,2]
[325173420,1714548644875,-500.0,0.00011777,2]
[325173422,1714548644885,-500.0,0.00011777,2]
[325173424,1714548644896,-500.0,0.00011777,2]
[325173427,1714548644907,-500.0,0.00011777,2]
[325173429,1714548644917,-500.0,0.00011777,2]
[325173431,1714548644928,-150.0,0.00011777,2]
[325173433,1714548644938,-500.0,0.00011777,2]
[325173435,1714548644949,-182.04034431,0.00011777,2]
[325173437,1714548644961,-384.68,0.00011777,2]
[325173439,1714548644975,-500.0,0.00011777,2]
[325173442,1714548644985,-500.0,0.00011777,2]
[325173444,1714548644996,-500.0,0.00011777,2]
[325173446,1714548645013,-249.73666842,0.00011777,2]
[325173448,1714548645024,-500.0,0.00011777,2]
[325173450,1714548645036,-500.0,0.00011777,2]
[325173452,1714548645046,-396.91793111,0.00011777,2]
[325173454,1714548645057,-509.21,0.00011777,2]
[325173457,1714548645068,-500.0,0.00011777,2]
[325173459,1714548645078,-500.0,0.00011777,2]
[325173461,1714548645089,-1197.23,0.00011777,2]
[325173463,1714548645101,-500.0,0.00011777,2]
[325173465,1714548645111,-548.43,0.00011777,2]
[325173467,1714548645122,-500.0,0.00011777,2]
[325173470,1714548645132,-500.0,0.00011777,2]
[325173472,1714548645143,-500.0,0.00011777,2]
[325173474,1714548645154,-524.35,0.00011777,2]
[325173476,1714548645164,-500.0,0.00011777,2]
[325173478,1714548645175,-623.95,0.00011777,2]
[325173480,1714548645185,-155.27724533,0.00011777,2]
[325173482,1714548645196,-500.0,0.00011777,2]
[325173485,1714548645206,-520.54459338,0.00011777,2]
[325173487,1714548645217,-500.0,0.00011777,2]
[325173489,1714548645229,-1199.51,0.00011777,2]
[325173491,1714548645239,-500.0,0.00011777,2]
[325173493,1714548645249,-825.59,0.00011777,2]
[325173495,1714548645260,-500.0,0.00011777,2]
[325173497,1714548645271,-500.0,0.00011778,2]
[325173499,1714548645281,-493.56,0.00011778,2]
[325173501,1714548645291,-500.0,0.00011778,2]
[325173504,1714548645302,-500.0,0.00011778,2]
[325173506,1714548645312,-500.0,0.00011778,2]
[325173508,1714548645323,-527.34,0.00011778,2]
[325173510,1714548645333,-500.0,0.00011778,2]
[325173512,1714548645343,-500.0,0.00011778,2]
[325173514,1714548645354,-639.1,0.00011778,2]
[325173517,1714548645364,-500.0,0.00011778,2]
[325173519,1714548645375,-500.0,0.00011778,2]
[325173521,1714548645385,-500.0,0.00011778,2]
[325173523,1714548645395,-615.57290113,0.00011778,2]
[325173525,1714548645407,-500.0,0.00011778,2]
[325173527,1714548645417,-175.0375529,0.00011778,2]
[325173530,1714548645428,-500.0,0.00011778,2]
[325173532,1714548645438,-500.0,0.00011778,2]
[325173533,1714548645448,-500.0,0.00011778,2]
[325173534,1714548645459,-534.38358408,0.00011778,2]
[325173535,1714548645472,-500.0,0.00011778,2]
[325173536,1714548645485,-234.75243336,0.00011778,2]
[325173537,1714548645495,-500.0,0.00011778,2]
[325173538,1714548645509,-500.0,0.00011778,2]
[325173539,1714548645519,-500.0,0.00011778,2]
[325173540,1714548645530,-841.43,0.00011778,2]
[325173542,1714548645540,-293.66050106,0.00011778,2]
[325173544,1714548645551,-500.0,0.00011778,2]
[325173546,1714548645561,-500.0,0.00011778,2]
[325173548,1714548645571,-500.0,0.00011778,2]
[325173550,1714548645583,-500.0,0.00011778,2]
[325173552,1714548645594,-680.47,0.00011778,2]
[325173554,1714548645605,-500.0,0.00011778,2]
[325173556,1714548645616,-1039.02,0.00011778,2]
[325173559,1714548645627,-500.0,0.00011778,2]
[325173561,1714548645638,-500.0,0.00011778,2]
[325173564,1714548645655,-500.0,0.00011778,2]
[325173566,1714548645667,-500.0,0.00011778,2]
[325173568,1714548645679,-500.0,0.00011778,2]
[325173571,1714548645691,-155.4,0.00011778,2]
[325173573,1714548645703,-743.43,0.00011778,2]
[325173575,1714548645714,-500.0,0.00011778,2]
[325173577,1714548645730,-13768.89,0.00011778,2]
[325173580,1714548645741,-500.0,0.00011778,2]
[325173582,1714548645752,-500.0,0.00011778,2]
[325173584,1714548645764,-501.29,0.00011778,2]
[325173586,1714548645775,-2347.0,0.00011778,2]
[325173589,1714548645787,-500.0,0.00011778,2]
[325173591,1714548645799,-500.0,0.00011778,2]
[325173593,1714548645811,-500.0,0.00011778,2]
[325173595,1714548645822,-500.0,0.00011778,2]
[325173597,1714548645833,-937.35,0.00011778,2]
[325173600,1714548645844,-821.34,0.00011778,2]
[325173602,1714548645854,-511.32,0.00011778,2]
[325173604,1714548645865,-606.06554521,0.00011778,2]
[325173606,1714548645877,-500.0,0.00011778,2]
[325173608,1714548645888,-685.63,0.00011778,2]
[325173611,1714548645899,-500.0,0.00011778,2]
[325173613,1714548645910,-620.89,0.00011778,2]
[325173615,1714548645920,-500.0,0.00011778,2]
[325173617,1714548645931,-500.0,0.00011778,2]
[325173619,1714548645942,-510.96,0.00011778,2]
[325173621,1714548645952,-500.0,0.00011778,2]
[325173623,1714548645965,-500.0,0.00011778,2]
[325173625,1714548645979,-500.0,0.00011778,2]
[325173628,1714548645990,-544.77,0.00011778,2]
[325173630,1714548646000,-628.46,0.00011778,2]
[325173632,1714548646013,-500.0,0.00011778,2]
[325173634,1714548646022,-2076.55,0.00011778,2]
[325173636,1714548646031,-816.62,0.00011778,2]
[325173638,1714548646041,-500.0,0.00011778,2]
[325173640,1714548646051,-1164.36,0.00011778,2]
[325173642,1714548646060,-500.0,0.00011778,2]
[325173644,1714548646069,-500.0,0.00011778,2]
[325173646,1714548646079,-2247.77,0.00011778,2]
[325173648,1714548646092,-1255.27,0.00011778,2]